fUSD/lending_fUSD_20260304
["ID","MTS","AMOUNT","RATE_DAILY","PERIOD"]
[407649895,1772614242124,-2325.0,0.00017001,2]
[407649896,1772614242133,-488.02148028,0.0001706,2]
[407649897,1772614242142,-492.2,0.0001706,2]
[407649898,1772614242152,-5686.0945738,0.00017077,2]
[407649899,1772614242162,-3431.20494075,0.00017077,2]
[407649900,1772614242172,-10000.0,0.000171,2]
[407649901,1772614242181,-192.67858373,0.00017155,2]
[407649902,1772614242191,-299.11451172,0.00017274,2]
[407649903,1772614242200,-492.2,0.0001733,2]
[407649904,1772614242211,-10000.0,0.000174,2]
[407649905,1772614242221,-488.02148028,0.0001748,2]
[407649906,1772614242230,-5686.0945738,0.00017489,2]
[407649907,1772614242240,-3431.20494075,0.00017489,2]
[407649908,1772614242249,-5000.0,0.000175,2]
[407649909,1772614242259,-10000.0,0.000176,2]
[407649910,1772614242269,-2000.0,0.000176,2]
[407649911,1772614242280,-492.2,0.000176,2]
[407649912,1772614242289,-172.65321166,0.0001764,2]
[407649913,1772614242299,-394.99,0.00017665,2]
[407649914,1772614242308,-5000.0,0.000177,2]
[407649915,1772614242318,-276.28,0.00017749,2]
[407649916,1772614242327,-223380.2499,0.000178,2]
[407649917,1772614242337,-10000.0,0.000178,2]
[407649918,1772614242347,-83677.50696153,0.0001783,2]
[407649919,1772614242357,-492.2,0.0001787,2]
[407649920,1772614242366,-151.0,0.00017897,2]
[407649921,1772614242376,-200.0,0.000179,2]
[407649922,1772614242386,-200.0,0.000179,2]
[407649923,1772614242395,-200.0,0.000179,2]
[407649927,1772614242406,-200.0,0.000179,2]
[407649929,1772614242621,-174.15,0.000179,2]
[407649930,1772614242631,-1000.0,0.000179,2]
[407649931,1772614242641,-1206.5711,0.000179,2]
[407649932,1772614242651,-6347.6089,0.000179,2]
[407649933,1772614242661,-25000.0,0.000179,3]
[407649934,1772614242670,-5000.0,0.000179,2]
[407649935,1772614242680,-259.68647952,0.000179,2]
[407649936,1772614242690,-5686.0945738,0.000179,2]
[407649937,1772614242700,-488.02148028,0.000179,2]
[407649939,1772614242710,-3431.20494075,0.000179,2]
[407649941,1772614242720,-192.67858373,0.000179,2]
[407649942,1772614242730,-24413.2803922,0.00017965,2]
[407649943,1772614242740,-4781.4243895,0.00017965,2]
[407649944,1772614242750,-151.0,0.00017997,2]
[407649945,1772614242759,-585.74276763,0.00017999,2]
[407649946,1772614242769,-300.0,0.00017999,2]
[407649947,1772614242780,-300.0,0.00017999,2]
[407649948,1772614242789,-200.0,0.00017999,2]
[407649949,1772614242799,-200.0,0.00017999,2]
[407649950,1772614242809,-3321052.56317891,0.00018,2]
[407649961,1772614242939,-528.58250547,0.00018,2]
[407649962,1772614242951,-621.86898814,0.00018,2]
[407649963,1772614242962,-568.9,0.00018,2]
[407649964,1772614242977,-15217.80290295,0.00018,2]
[407649965,1772614242997,-1393.20373301,0.00018,2]
[407649966,1772614243007,-1862.01038127,0.00018,2]
[407649967,1772614243074,-1413.65404754,0.00013173,2]
[407649968,1772614243179,-81246.59879436,0.00013173,2]
[407649969,1772614243190,-18443.9954545,0.00014842,2]
[407649970,1772614243199,-4115.4116595,0.00015215,2]
[407649971,1772614243209,-222312.23925755,0.00018,2]
[407649996,1772614245722,-281.43286606,0.00015827,2]
[407649997,1772614245732,-4137.44910391,0.00018,2]
[407649998,1772614245776,-790.67746031,0.00018,2]
[407649999,1772614245790,-159473.37932789,0.00018,2]
[407650000,1772614245886,-720.69661148,0.00018,2]
[407650001,1772614245940,-1708452.54616366,0.00018,2]
[407650002,1772614245951,-28073.39980498,0.00018,2]
[407650003,1772614245962,-1180.128,0.00018,2]
[407650004,1772614245996,-5296.59550526,0.00018,2]
[407650005,1772614246008,-1629.35103318,0.00018,2]
[407650006,1772614246019,-9673.69731542,0.00018,2]
[407650011,1772614421815,-828.73922611,9.003e-05,2]
[407650012,1772614513689,158.0,9.003e-05,3]
[407650013,1772614644605,500.0,9.003e-05,2]
[407650014,1772614645064,500.0,9.003e-05,2]
[407650015,1772614645546,763.58148582,9.003e-05,2]
[407650016,1772614810264,158.0,9.003e-05,3]
[407650020,1772614943571,500.0,9.003e-05,2]
[407650021,1772614951850,6831.9,0.00011,25]
[407650022,1772615016117,18802.88563185,0.00011,30]
[407650023,1772615043347,150.0,0.00012636,120]
[407650024,1772615108894,158.0,9.003e-05,3]
[407650025,1772615247625,1129.09,0.00017,120]
[407650026,1772615361127,-3240.87579139,9.95e-05,2]
[407650027,1772615361148,-232.0,9.95e-05,2]
[407650028,1772615361168,-150.7,0.0001027,2]
[407650029,1772615361192,-315.27017192,0.0001059,2]
[407650031,1772615404867,158.0,9.003e-05,3]
[407650035,1772615431898,-237.0,0.0001059,2]
[407650037,1772615431907,-103.79942577,0.00010644,2]
[407650038,1772615431919,-196.20057423,0.00010644,2]
[407650040,1772615431929,-150.91942577,0.000107,2]
[407650046,1772615432056,-118.51415706,0.000107,2]
[407650047,1772615432067,-1032.24477946,0.000108,2]
[407650048,1772615432077,-193.0,0.00010945,2]
[407650049,1772615432087,-470.22066299,0.00010945,2]
[407650050,1772615432097,-250.0,0.00010945,2]
[407650051,1772615432107,-150.0,0.00010999,2]
[407650052,1772615432118,-300.0,0.00010999,2]
[407650053,1772615432128,-1036.02040049,0.00010999,2]
[407650054,1772615432140,-163.97959951,0.00010999,2]
[407650055,1772615432150,-6247.77252041,0.00011,7]
[407650056,1772615432161,-26179.81631399,0.00011,7]
[407650057,1772615432173,-9084.35672582,0.00011,7]
[407650059,1772615432193,-4341.66644587,0.00011,7]
[407650060,1772615432209,-8767.80330554,0.00011,7]
[407650061,1772615432219,-3312.77616749,0.00011,7]
[407650062,1772615432229,-200.0,0.00011491,2]
[407650063,1772615432239,-150.0,0.00011596,2]
[407650065,1772615432250,-981.693,0.00011999,2]
[407650067,1772615432259,-197.194,0.00011999,2]
[407650069,1772615432270,-166.66,0.00012,2]
[407650071,1772615432289,-253.45935133,0.00012,2]
[407650073,1772615432298,-500.0,0.00012,2]
[407650075,1772615432307,-500.0,0.00012,2]
[407650077,1772615432317,-500.0,0.00012,2]
[407650079,1772615432328,-350.0,0.00012,2]
[407650081,1772615432338,-500.0,0.00012,2]
[407650083,1772615432347,-500.0,0.00012,2]
[407650086,1772615432357,-500.0,0.00012,2]
[407650089,1772615432370,-359.50131574,0.00012,2]
[407650092,1772615432382,-140.49868426,0.00012,2]
[407650096,1772615432392,-500.0,0.00012,2]
[407650099,1772615432401,-150.0,0.00012027,2]
[407650102,1772615432411,-195.0,0.00012044,2]
[407650104,1772615432421,-2400.14,0.00012046,2]
[407650107,1772615432430,-420.0,0.00012087,2]
[407650109,1772615432440,-1200.0,0.00012099,2]
[407650111,1772615432449,-800.0,0.000126,4]
[407650113,1772615432459,-150.0,0.00012636,2]
[407650116,1772615432469,-1500.0,0.00012636,2]
[407650117,1772615432479,-1700.0,0.000127,4]
[407650119,1772615432488,-2426.68,0.00012738,2]
[407650121,1772615432498,-1397.10822967,0.000128,4]
[407650124,1772615432510,-1102.89177033,0.000128,4]
[407650126,1772615432521,-980.86913191,0.00012846,2]
[407650128,1772615432534,-200.0,0.00012898,2]
[407650130,1772615432544,-151.0,0.00012898,2]
[407650132,1772615432554,-151.0,0.00012898,2]
[407650135,1772615432565,-151.0,0.00012898,2]
[407650137,1772615432575,-151.0,0.00012898,2]
[407650139,1772615432585,-151.0,0.00012898,2]
[407650141,1772615432596,-151.0,0.00012898,2]
[407650143,1772615432607,-151.0,0.00012898,2]
[407650145,1772615432618,-151.0,0.00012898,2]
[407650147,1772615432628,-151.0,0.00012898,2]
[407650149,1772615432637,-151.0,0.00012898,2]
[407650151,1772615432647,-500.0,0.00012898,2]
[407650153,1772615432657,-151.0,0.00012898,2]
[407650155,1772615432667,-415.62690333,0.00012898,2]
[407650157,1772615432677,-151.0,0.00012898,2]
[407650159,1772615432687,-151.0,0.00012898,2]
[407650161,1772615432697,-151.0,0.00012898,2]
[407650163,1772615432706,-151.0,0.00012898,2]
[407650165,1772615432716,-151.0,0.00012898,2]
[407650167,1772615432726,-151.0,0.00012898,2]
[407650169,1772615432735,-151.0,0.00012898,2]
[407650171,1772615432745,-151.0,0.00012898,2]
[407650173,1772615432754,-151.0,0.00012898,2]
[407650175,1772615432763,-151.0,0.00012898,2]
[407650177,1772615432772,-151.0,0.00012898,2]
[407650179,1772615432782,-151.0,0.00012898,2]
[407650181,1772615432791,-151.0,0.00012898,2]
[407650183,1772615432801,-151.0,0.00012898,2]
[407650185,1772615432810,-218.23513463,0.00012898,2]
[407650187,1772615432819,-151.0,0.00012898,2]
[407650189,1772615432830,-236.11223707,0.00012898,2]
[407650191,1772615432839,-151.0,0.00012898,2]
[407650193,1772615432848,-500.0,0.00012898,2]
[407650195,1772615432857,-3400.0,0.000129,4]
[407650197,1772615432868,-6998.47031306,0.00012905,2]
[407650199,1772615432877,-157.92597998,0.00012946,2]
[407650201,1772615432887,-2605.77566806,0.00013242,2]
[407650203,1772615432896,-217.0,0.00013282,2]
[407650205,1772615432909,-980.8691319,0.00013408,2]
[407650207,1772615432919,-200.0,0.00013446,2]
[407650209,1772615432928,-500.0,0.00013698,2]
[407650211,1772615432937,-523.63690189,0.00013698,2]
[407650213,1772615432947,-500.0,0.00013698,2]
[407650215,1772615432956,-500.0,0.00013698,2]
[407650217,1772615432966,-500.0,0.00013698,2]
[407650219,1772615432975,-500.0,0.00013698,2]
[407650221,1772615432985,-500.0,0.00013698,2]
[407650223,1772615432994,-500.0,0.00013698,2]
[407650225,1772615433004,-510.60006379,0.00013698,2]
[407650227,1772615433014,-498.44553072,0.00013698,2]
[407650229,1772615433023,-200.0,0.00013699,2]
[407650232,1772615433033,-150.28265019,0.00013825,2]
[407650234,1772615433042,-150.0,0.00013825,2]
[407650235,1772615433052,-150.0,0.00013825,2]
[407650237,1772615433061,-152.89812037,0.00013825,2]
[407650239,1772615433070,-154.2065447,0.00013825,2]
[407650242,1772615433080,-150.0,0.00013825,2]
[407650244,1772615433089,-150.0,0.00013825,2]
[407650246,1772615433099,-150.0,0.00013825,2]
[407650248,1772615433108,-150.0,0.00013825,2]
[407650250,1772615433119,-150.0,0.00013825,2]
[407650252,1772615433128,-150.0,0.00013825,2]
[407650253,1772615433137,-158.17888341,0.00013825,2]
[407650256,1772615433146,-500.0,0.00013825,2]
[407650258,1772615433156,-150.0,0.00013825,2]
[407650260,1772615433165,-150.0,0.00013825,2]
[407650262,1772615433174,-500.0,0.00013825,2]
[407650263,1772615433183,-150.0,0.00013825,2]
[407650266,1772615433192,-150.0,0.00013825,2]
[407650268,1772615433202,-500.0,0.00013825,2]
[407650269,1772615433212,-150.0,0.00013825,2]
[407650272,1772615433226,-150.0,0.0001388,2]
[407650273,1772615433237,-150.0,0.0001388,2]
[407650276,1772615433249,-150.0,0.0001388,2]
[407650277,1772615433260,-150.0,0.0001388,2]
[407650279,1772615433270,-150.0,0.0001388,2]
[407650281,1772615433281,-150.0,0.0001388,2]
[407650284,1772615433295,-150.0,0.0001388,2]
[407650286,1772615433304,-150.0,0.0001388,2]
[407650288,1772615433313,-292.33838515,0.0001388,2]
[407650290,1772615433325,-207.66161485,0.0001388,2]
[407650292,1772615433335,-268.90369718,0.0001388,2]
[407650294,1772615433344,-500.0,0.0001388,2]
[407650296,1772615433353,-150.0,0.0001388,2]
[407650298,1772615433362,-500.0,0.0001388,2]
[407650300,1772615433373,-150.0,0.0001388,2]
[407650302,1772615433383,-200.0,0.00013935,2]
[407650304,1772615433392,-202.02752332,0.00013935,2]
[407650306,1772615433403,-180.0,0.00013935,2]
[407650308,1772615433412,-200.0,0.00013935,2]
[407650310,1772615433422,-200.0,0.00013935,2]
[407650312,1772615433431,-200.0,0.00013935,2]
[407650314,1772615433441,-203.85484464,0.00013935,2]
[407650316,1772615433451,-200.0,0.00013935,2]
[407650319,1772615433460,-500.0,0.00013935,2]
[407650321,1772615433470,-500.0,0.00013935,2]
[407650323,1772615433480,-150.0,0.00013935,2]
[407650325,1772615433489,-341.82111659,0.00013935,2]
[407650327,1772615433498,-200.0,0.00013935,2]
[407650329,1772615433508,-980.8691319,0.00013969,2]
[407650331,1772615433518,-500.0,0.00013989,2]
[407650333,1772615433528,-500.0,0.00013989,2]
[407650334,1772615433539,-150.0,0.00013989,2]
[407650337,1772615433549,-250.0,0.00013993,2]
[407650339,1772615433558,-200.0,0.00013994,2]
[407650340,1772615433568,-506.0,0.00014,2]
[407650342,1772615433578,-500.0,0.00014044,2]
[407650344,1772615433587,-150.0,0.00014044,2]
[407650347,1772615433599,-253.31781377,0.00014044,2]
[407650349,1772615433609,-6347.6089,0.00014173,2]
[407650351,1772615433622,-259.860044,0.00014212,2]
[407650353,1772615433631,-500.0,0.00014373,2]
[407650355,1772615433640,-272.94764699,0.00014373,2]
[407650357,1772615433650,-500.0,0.00014373,2]
[407650359,1772615433659,-500.11286481,0.00014373,2]
[407650361,1772615433670,-500.11732428,0.00014373,2]
[407650363,1772615433683,-980.8691319,0.00014531,2]
[407650365,1772615433692,-202.33705634,0.00014542,2]
[407650367,1772615433701,-9312.11715781,0.00014722,2]
[407650370,1772615433714,-263.36265892,0.00014722,2]
[407650372,1772615433728,-791.80409754,0.00014722,2]
[407650374,1772615433739,-474.202935,0.00014722,2]
[407650377,1772615433759,-705.89360131,0.00014722,2]
[407650381,1772615433778,-265.84703492,0.00014722,2]
[407650383,1772615433789,-712.0,0.00014722,2]
[407650696,1772615437998,-833.66172791,0.00010537,2]
[407650697,1772615438011,-597.62254409,0.00010537,2]
[407650698,1772615438020,-466.01265719,0.00014722,2]
[407650699,1772615438265,-430.53119462,0.00014722,2]
[407650700,1772615438277,-37793.20866269,0.00014722,2]
[407650701,1772615438286,-3240.0,0.00014834,2]
[407650702,1772615438298,-1000.0,0.00014836,2]
[407650703,1772615438307,-8956.0,0.00014901,2]
[407650704,1772615438316,-1088.73254434,0.00014921,2]
[407650705,1772615438325,-250.0,0.00015,2]
[407650706,1772615438335,-210.27,0.0001503,2]
[407650707,1772615438344,-150.0,0.00015085,2]
[407650708,1772615438354,-980.8691319,0.00015092,2]
[407650709,1772615438362,-166.66,0.00015264,2]
[407650710,1772615438372,-157.92597998,0.00015423,2]
[407650711,1772615438385,-166.66,0.00015585,2]
[407650712,1772615438394,-4000.0,0.00015637,2]
[407650713,1772615438404,-980.8691319,0.00015654,2]
[407650714,1772615438414,-166.66,0.00015906,2]
[407650715,1772615438424,-876.22,0.00016014,2]
[407650716,1772615438434,-4000.0,0.00016028,2]
[407650717,1772615438443,-5000.0008647,0.000162,5]
[407650718,1772615438453,-980.8691319,0.00016215,2]
[407650719,1772615438462,-166.66,0.00016228,2]
[407650720,1772615438472,-619.33,0.00016288,2]
[407650721,1772615438481,-4000.0,0.00016419,2]
[407650722,1772615438491,-395.00788107,0.00016459,2]
[407650723,1772615438501,-922.997,0.00016464,2]
[407650724,1772615438510,-1212.621,0.00016464,2]
[407650725,1772615438520,-500.0,0.00016478,2]
[407650726,1772615438530,-500.0,0.00016478,2]
[407650727,1772615438539,-174.61919141,0.00016478,2]
[407650728,1772615438549,-500.0,0.00016478,2]
[407650729,1772615438558,-275.3885982,0.00016478,2]
[407650730,1772615438568,-500.0,0.00016478,2]
[407650731,1772615438577,-500.0,0.00016478,2]
[407650732,1772615438586,-500.0,0.00016478,2]
[407650733,1772615438596,-151.0,0.00016478,2]
[407650734,1772615438605,-500.0,0.00016478,2]
[407650735,1772615438614,-500.0,0.00016478,2]
[407650736,1772615438623,-364.83048626,0.00016478,2]
[407650737,1772615438635,-693.3919763,0.00016478,2]
[407650738,1772615438645,-151.0,0.00016533,2]
[407650739,1772615438654,-719.04747942,0.00016533,2]
[407650740,1772615438664,-166.66,0.00016549,2]
[407650741,1772615438673,-151.0,0.00016588,2]
[407650742,1772615438683,-745.65223616,0.00016588,2]
[407650743,1772615438692,-2458.0,0.00016623,2]
[407650744,1772615438701,-5987.0,0.00016623,2]
[407650745,1772615438711,-274.00152663,0.00016643,2]
[407650746,1772615438720,-773.2413689,0.00016643,2]
[407650747,1772615438730,-1000.0,0.00016691,2]
[407650748,1772615438739,-394.99,0.00016694,2]
[407650749,1772615438748,-801.85129955,0.00016698,2]
[407650750,1772615438758,-831.51979763,0.00016753,2]
[407650751,1772615438767,-980.8691319,0.00016777,2]
[407650752,1772615438777,-862.28603014,0.00016808,2]
[407650753,1772615438786,-4000.0,0.00016809,2]
[407650754,1772615438796,-150.0,0.0001683,14]
[407650755,1772615438805,-894.19061326,0.00016863,2]
[407650756,1772615438815,-166.66,0.0001687,2]
[407650757,1772615438825,-927.27566595,0.00016918,2]
[407650758,1772615438835,-8237.46,0.00016922,2]
[407650759,1772615438845,-233.56,0.00016922,2]
[407650761,1772615438854,-150.99,0.00016922,2]
[407650763,1772615438864,-9999.99,0.00016922,2]
[407650765,1772615438873,-299.99,0.00016922,4]
[407650767,1772615438883,-9999.99,0.00016922,2]
[407650769,1772615438892,-1614.58,0.00016922,2]
[407650771,1772615438901,-150.99,0.00016922,2]
[407650773,1772615438910,-315.74082907,0.00016973,2]
[407650775,1772615438919,-500.0,0.00016973,2]
[407650777,1772615438929,-500.0,0.00016973,2]
[407650779,1772615438939,-961.58486559,0.00016973,2]
[407650781,1772615438949,-300.0,0.00017,2]
[407650783,1772615438959,-26512.37211632,0.00017,2]
[407650784,1772615438969,-461.65143781,0.00017,2]
[407650787,1772615438982,-1105.90057056,0.00017,2]
[407650821,1772615440136,-1713.46798966,0.00016623,2]
[407650822,1772615440148,-2030.53201034,0.00016623,2]
[407650823,1772615440159,-11359.78436466,0.00017,2]
[407650824,1772615440190,-262.632924,0.00017,2]
[407650825,1772615440513,-680.2975,0.00017,2]
[407650826,1772615440676,-4678.24605983,0.00017,2]
[407650827,1772615440687,-169983.43493223,0.00017,2]
[407650828,1772615440697,-150.0,0.00017001,2]
[407650829,1772615440706,-150.0,0.00017001,2]
[407650830,1772615440716,-150.23,0.00017001,2]
[407650831,1772615440727,-150.0,0.00017001,2]
[407650833,1772615440736,-1043.111,0.00017001,2]
[407650835,1772615440745,-619.0,0.00017001,2]
[407650837,1772615440754,-3501.0,0.00017001,2]
[407650839,1772615440763,-1341.788,0.00017001,2]
[407650841,1772615440772,-1278.0,0.00017001,2]
[407650843,1772615440781,-181.08010149,0.00017026,2]
[407650845,1772615440790,-997.16350561,0.00017028,2]
[407650847,1772615440800,-30000.0,0.0001711,2]
[407650849,1772615440809,-4000.0,0.000172,2]
[407650850,1772615440818,-4200.0,0.000173,6]
[407650852,1772615440827,-980.8691319,0.00017338,2]
[407650854,1772615440839,-394.98,0.00017382,2]
[407650856,1772615440848,-800.0,0.000174,6]
[407650858,1772615440857,-168.0,0.00017451,2]
[407650860,1772615440867,-22448.2139691,0.000175,3]
[407650863,1772615440877,-800.0,0.000175,6]
[407650864,1772615440886,-1000.0,0.00017521,2]
[407650867,1772615440896,-1000.0,0.00017521,2]
[407650868,1772615440905,-187.78006525,0.00017574,2]
[407650870,1772615440914,-800.0,0.000176,6]
[407650872,1772615440923,-201.42874694,0.0001764,2]
[407650874,1772615440932,-260.56842108,0.00017691,2]
[407650876,1772615440947,-800.0,0.000177,6]
[407650878,1772615440956,-168.0,0.00017798,2]
[407650880,1772615440965,-2000.0,0.000178,2]
[407650882,1772615440974,-1200.0,0.000178,6]
[407650884,1772615440983,-168.0,0.00017821,2]
[407650886,1772615440992,-172.65896273,0.00017846,2]
[407650888,1772615441001,-160.0,0.00017846,2]
[407650890,1772615441010,-24760.6297,0.000179,2]
[407650892,1772615441019,-1000.0,0.000179,2]
[407650894,1772615441029,-157.92597998,0.000179,2]
[407650896,1772615441038,-980.8691319,0.000179,2]
[407650898,1772615441047,-360.68011535,0.000179,2]
[407650900,1772615441058,-488.02148028,0.000179,2]
[407650902,1772615441066,-199.65636282,0.000179,3]
[407650904,1772615441076,-3149.41983829,0.000179,2]
[407650906,1772615441085,-1249.79531024,0.000179,2]
[407650908,1772615441094,-1196.35296281,0.000179,2]
[407650910,1772615441103,-3943.52545845,0.000179,2]
[407650912,1772615441113,-5234.2797115,0.00017914,2]
[407650914,1772615441122,-2108.0731479,0.00017914,2]
[407650916,1772615441134,-25390.5009578,0.00017914,2]
[407650918,1772615441143,-22935.2735023,0.00017915,2]
[407650920,1772615441152,-250.64816287,0.0001799,2]
[407650921,1772615441163,-250.64816287,0.0001799,2]
[407650923,1772615441172,-250.64816287,0.0001799,2]
[407650925,1772615441181,-151.0,0.00017997,2]
[407650927,1772615441191,-57267.92445272,0.00017999,2]
[407650929,1772615441201,-300.0,0.00017999,2]
[407650931,1772615441216,-155.0,0.00017999,2]
[407650933,1772615441226,-300.0,0.00017999,2]
[407650935,1772615441237,-670.86732423,0.00017999,2]
[407650937,1772615441245,-500.0,0.00017999,2]
[407650939,1772615441256,-196.56866628,0.00017999,2]
[407650941,1772615441265,-2996266.41135853,0.00018,2]
[407650958,1772615443111,-610196.17527526,0.00018,2]
[407650959,1772615443122,-23591.07651343,0.00018,2]
[407650960,1772615443135,-9951.33379052,0.00018,2]
[407650968,1772615445889,-1387.24844551,0.00014609,2]
[407650971,1772615445899,-7865.95221208,0.00018,2]
[407650975,1772615445942,-334005.69416686,0.00018,2]
[407650977,1772615445953,-173024.34877812,0.00018,2]
[407650984,1772615446227,-74600.08319038,0.00018,2]
[407650986,1772615446239,-12243.25995398,0.00018,2]
[407650988,1772615446250,-636.74963626,0.00018,2]
[407650992,1772615846094,563.76949638,9.003e-05,2]
[407650994,1772616410145,-188.87612058,0.000119,2]
[407650995,1772616441552,511.90979169,8.7e-05,2]
[407650996,1772616552097,-305.59020831,8.7e-05,2]
[407650997,1772616552120,-151.21,8.7e-05,2]
[407650998,1772616552144,-363.45274549,9.003e-05,2]
[407651008,1772616632096,-136.54725451,9.003e-05,2]
[407651009,1772616632106,-500.0,9.003e-05,2]
[407651010,1772616632116,-500.0,9.003e-05,2]
[407651011,1772616632125,-300.0,9.569e-05,2]
[407651012,1772616632135,-1200.0,9.569e-05,2]
[407651013,1772616632148,-300.0,9.569e-05,2]
[407651014,1772616632158,-2276.45659438,9.57e-05,2]
[407651015,1772616632170,-2723.54340562,9.57e-05,2]
[407651016,1772616632180,-250.0,9.57e-05,2]
[407651017,1772616632190,-193.0,9.57e-05,2]
[407651018,1772616632201,-1680.0,0.00010526,2]
[407651019,1772616632211,-459.0,0.00011578,2]
[407651020,1772616632221,-444.3243859,0.00011896,2]
[407651021,1772616632231,-51.03928331,0.000119,2]
[407651022,1772616632241,-150.0,0.00011999,2]
[407651023,1772616632252,-797.98363115,0.00012,2]
[407651024,1772616632263,-500.0,0.00012,2]
[407651025,1772616632274,-500.0,0.00012,2]
[407651026,1772616632285,-500.0,0.00012,2]
[407651027,1772616632295,-500.0,0.00012,2]
[407651028,1772616632306,-500.0,0.00012,2]
[407651030,1772616632316,-500.0,0.00012,2]
[407651032,1772616632327,-500.0,0.00012,2]
[407651034,1772616632337,-849.0088316,0.00012809,2]
[407651036,1772616632347,-616.0,0.0001304,2]
[407651038,1772616632357,-235.0,0.00013079,2]
[407651040,1772616632367,-500.0,0.00013164,2]
[407651043,1772616632378,-14500.55151585,0.00013462,2]
[407651045,1772616632388,-800.0,0.000136,4]
[407651047,1772616632399,-500.0,0.00013698,2]
[407651049,1772616632409,-500.0,0.00013698,2]
[407651051,1772616632418,-500.0,0.00013698,2]
[407651053,1772616632428,-500.0,0.00013698,2]
[407651055,1772616632439,-500.0,0.00013698,2]
[407651057,1772616632449,-602.06361303,0.00013698,2]
[407651058,1772616632458,-500.0,0.00013698,2]
[407651059,1772616632467,-500.0,0.00013698,2]
[407651060,1772616632475,-500.0,0.00013698,2]
[407651061,1772616632483,-482.10450217,0.00013698,2]
[407651062,1772616632491,-230.98606825,0.00013698,2]
[407651063,1772616632501,-500.0,0.00013698,2]
[407651066,1772616632511,-500.0,0.00013698,2]
[407651069,1772616632521,-500.0,0.00013698,2]
[407651072,1772616632531,-500.0,0.00013698,2]
[407651075,1772616632541,-194.87334623,0.00013698,2]
[407651078,1772616632552,-2275.29792451,0.00013698,2]
[407651080,1772616632563,-1600.0,0.000137,5]
[407651082,1772616632577,-479.74,0.00013789,2]
[407651083,1772616632590,-2400.0,0.000138,5]
[407651084,1772616632601,-166.66,0.00013842,2]
[407651085,1772616632610,-352.7,0.00013863,2]
[407651086,1772616632623,-3200.0,0.000139,5]
[407651087,1772616632633,-1600.0,0.00013964,2]
[407651088,1772616632643,-150.0,0.00013998,2]
[407651089,1772616632654,-150.0,0.00014053,2]
[407651090,1772616632665,-150.0,0.00014108,2]
[407651091,1772616632675,-150.0,0.00014162,2]
[407651093,1772616632685,-2500.0,0.00014173,2]
[407651094,1772616632695,-7030.00725107,0.00014173,2]
[407651095,1772616632706,-171.739,0.00014186,2]
[407651097,1772616632716,-1340.057,0.00014186,2]
[407651099,1772616632727,-1852.42,0.00014187,2]
[407651101,1772616632737,-8548.83733768,0.00014199,2]
[407651123,1772616633010,-1240.38060323,0.00014199,2]
[407651124,1772616633034,-1448.5525,0.00014247,2]
[407651125,1772616633047,-274.0,0.00014247,2]
[407651126,1772616633062,-250.64816287,0.00014263,2]
[407651127,1772616633082,-200.0,0.00014264,2]
[407651128,1772616633098,-151.0,0.00014264,2]
[407651129,1772616633108,-153.38423145,0.00014264,2]
[407651130,1772616633117,-500.0,0.00014264,2]
[407651131,1772616633128,-500.0,0.00014264,2]
[407651132,1772616633138,-500.0,0.00014264,2]
[407651133,1772616633149,-500.0,0.00014264,2]
[407651134,1772616633160,-500.0,0.00014264,2]
[407651135,1772616633171,-500.0,0.00014264,2]
[407651136,1772616633181,-500.0,0.00014264,2]